Cogmind - Beta 10.2 @@@ ROGUE MODE // 2021.02.28 @ 00:10:39 Player: sentrybuster Result: Destroyed by G-34 Mercenary with Small Laser Performance ------------- Evolutions (1) 500 Regions Visited (3) 600 Robots Destroyed (20) 100 Value Destroyed (757) 757 Prototype IDs (2) 40 Alien Tech Used (0) 0 Bonus (0) 0 TOTAL SCORE: 1997 Bonus ------- None Cogmind --------- Core Integrity 0/400 Matter 300/300 Energy 95/100 System Corruption 0% Temperature Cool (6) Movement Walking (120) Location -9/Storage Parts ------- > --- POWER (1) -------- (None) > --- PROPULSION (3) --- Light Treads Aluminum Leg Aluminum Leg > --- UTILITY (3) ------ Large Storage Unit Visual Processing Unit Hacking Suite > --- WEAPON (2) ------- Katana > --- INVENTORY (10) --- Light Nuclear Core Light Treads Compact Wheel Signal Interpreter Drone Bay (2/2) Small Laser Peak State ------------ > --- POWER ------------ Light Nuclear Core > --- PROPULSION ------- Light Treads Aluminum Leg Aluminum Leg > --- UTILITY ---------- Small Storage Unit Visual Processing Unit Hacking Suite > --- WEAPON ----------- Heavy EM Pulse Gun Advanced Beam Cannon > --- INVENTORY -------- Light Nuclear Core Light Treads Signal Interpreter Small Laser Light EM Pulse Cannon Katana [Rating: 18] Favorites ----------- Power Improved Ion Engine Engine Improved Ion Engine Power Core Light Nuclear Core Propulsion Aluminum Leg Treads Light Treads Leg Aluminum Leg Wheel Compact Wheel Utility Visual Processing Unit Storage Large Storage Unit Processor Visual Processing Unit Hackware Hacking Suite Weapon Heavy Assault Rifle Energy Gun Heavy EM Pulse Gun Energy Cannon Advanced Beam Cannon Ballistic Gun Heavy Assault Rifle Slashing Weapon Katana Build | -11 -10 -9 -9 ------- Run | Scr Mat Mat Sto Slots Evolved 2 | . . 2 . Power . | . . . . Propulsion 1 | . . 1 . Utility 1 | . . 1 . Weapon . | . . . . Parts Attached 23 | 6 1 11 5 Power 3 | 1 . 2 . Engine 2 | 1 . 1 . Core 1 | . . 1 . Reactor . | . . . . Propulsion 8 | 2 . 3 3 Treads 2 | . . 1 1 Leg 5 | 2 . 2 1 Wheel 1 | . . . 1 Hover . | . . . . Flight . | . . . . Utility 4 | 1 1 2 . Device . | . . . . Storage 2 | 1 . 1 . Processor 1 | . 1 . . Hackware 1 | . . 1 . Protection . | . . . . Artifact . | . . . . Weapon 8 | 2 . 4 2 Energy Gun 2 | 1 . 1 . Energy Cannon 2 | . . 1 1 Ballistic Gun 2 | 1 . 1 . Ballistic Cannon . | . . . . Launcher . | . . . . Special Weapon . | . . . . Impact Weapon . | . . . . Slashing Weapon 2 | . . 1 1 Piercing Weapon . | . . . . Special Melee Weapon . | . . . . Unidentified Prototypes 1 | . . 1 . Parts Lost 9 | . . 5 4 Power 2 | . . 1 1 Propulsion 3 | . . 2 1 Utility . | . . . . Weapon 4 | . . 2 2 Highest Loss Streak 5 | . . 5 4 Average Slot Usage (%) 94 | . 90 94 97 Engine 8 | . 14 5 10 Core 2 | . . 4 . Treads 8 | . . 9 10 Leg 22 | . 28 21 22 Storage 11 | . 14 11 11 Processor 10 | . 5 11 11 Hackware 8 | . . 9 11 Energy Gun 5 | . 14 5 . Energy Cannon 5 | . . 6 6 Ballistic Gun 7 | . 14 4 9 Slashing Weapon 4 | . . 4 5 Naked Turns . | . . . . Heaviest Build 30 | 9 9 28 30 Greatest Support 20 | 20 20 20 20 Greatest Overweight (x) 2 | 1 . 2 1 Average Overweight (x) . | . . . . Largest Inventory Capacity 10 | 6 6 10 10 Average Capacity 8 | 5 6 9 10 Most Carried 7 | 4 5 6 7 Average Carried 5 | 2 4 5 5 Final Capacity 10 | 6 6 10 10 Final Carried 6 | 4 5 5 6 Class Distribution -------------------- 54% | Mutant 45% | Scavenger-Mutant Dominant Class ---------------- Mutant | -10/Materials Mutant | -9/Materials Scavenger-Mutant | -9/Storage Resources | -11 -10 -9 -9 ----------- Run | Scr Mat Mat Sto Matter Collected 436 | 193 21 154 68 Remotely . | . . . . Salvage Created 887 | . 21 473 393 Parts 53 | . 3 31 19 Haulers Intercepted . | . . . . Recyclers Shooed . | . . . . Parts Field Recycled . | . . . . Retrieved Matter . | . . . . Parts Self-Destructed . | . . . . Prevented . | . . . . Kills | -11 -10 -9 -9 ------- Run | Scr Mat Mat Sto Combat Hostiles Destroyed 18 | . . 12 6 Melee 5 | . . 3 2 Guns 4 | . . 3 1 Cannons 8 | . . 5 3 AOE 1 | . . 1 . Classes Destroyed 6 | . 1 3 2 Recycler 1 | . . . 1 Watcher 1 | . 1 . . Grunt 11 | . . 9 2 Brawler 1 | . . . 1 Duelist 1 | . . 1 . Sentry 5 | . . 2 3 Best Kill Streak 7 | . 1 7 3 Combat Bots Only 7 | . . 7 2 Max Kills in Single Turn 1 | . 1 1 1 Gunslinging . | . . . . Exploded 1 | . . 1 . Melee 1 | . . 1 1 Uniques/NPCs Destroyed . | . . . . Combat | -11 -10 -9 -9 -------- Run | Scr Mat Mat Sto Damage Taken 1378 | . . 772 606 Core 402 | . . 249 153 Absorbed by Shields . | . . . . Core Remaining (%) 100 | 100 100 . . Volleys Fired 40 | . 5 17 18 Largest 2 | . 2 2 2 Hottest 113 | . 60 113 79 Shots Fired 71 | . 10 32 29 Gun 36 | . 10 15 11 Cannon 35 | . . 17 18 Launcher . | . . . . Special . | . . . . Kinetic 16 | . 5 . 11 Thermal 22 | . 5 17 . Explosive . | . . . . Electromagnetic 33 | . . 15 18 Robot Hit Streak 9 | . 1 5 9 Robot Miss Streak 5 | . 5 2 1 Penetration Max . | . . . . Secondary Targets . | . . . . Shots Hit Robots 63 | . 2 30 31 Core Hits 25 | . 2 13 10 Critical Hits 2 | . . 2 . Critical Kills 2 | . . 2 . Critical Parts Destroyed . | . . . . Melee Attacks 26 | . . 12 14 Impact . | . . . . Slashing 26 | . . 12 14 Piercing . | . . . . Sneak Attacks 1 | . . 1 . Combat Hostiles . | . . . . Follow-up Attacks . | . . . . Damage Inflicted 1579 | . 22 859 698 Guns 222 | . 22 104 96 Cannons 476 | . . 163 313 Explosions 144 | . . 144 . Melee 737 | . . 448 289 Ramming . | . . . . Kinetic 106 | . 10 . 96 Thermal 319 | . 12 307 . Explosive . | . . . . Electromagnetic 417 | . . 104 313 Impact . | . . . . Slashing 737 | . . 448 289 Piercing . | . . . . Highest Corruption . | . . . . Average Corruption . | . . . . Corruption Purged . | . . . . Overload Shots . | . . . . Overflow Damage 134 | . . 107 27 Projectiles . | . . . . Explosions . | . . . . Melee 134 | . . 107 27 Knockbacks . | . . . . Impact . | . . . . Kinetic . | . . . . Secondary . | . . . . Self-Inflicted Damage 47 | . . 47 . Shots 1 | . . 1 . Rammed . | . . . . Targets Rammed . | . . . . Kicked . | . . . . Crushed . | . . . . Highest Temperature 282 | . 40 282 75 Average Temperature 77 | . 16 115 30 Received Heat Transfer 549 | . . 357 192 Effects 2 | . . 2 . Interference 2 | . . 2 . Siege Activations . | . . . . Robots Corrupted . | . . . . Combat Hostiles . | . . . . Parts Fried . | . . . . Impact Corruptions . | . . . . Robots Melted . | . . . . Combat Hostiles . | . . . . Parts Melted 1 | . . 1 . Heat Transferred 521 | . 25 496 . Parts Sabotaged . | . . . . Parts Stolen . | . . . . Parts Stripped . | . . . . Power Chain Reactions 1 | . . 1 . Missiles Intercepted . | . . . . Alert | -11 -10 -9 -9 ------- Run | Scr Mat Mat Sto Peak Influence 338 | . 42 338 229 Initial 64 | . . 17 64 Average 119 | . 26 150 134 Maximum Alert Level 1 | . . 1 1 Low Security (%) 88 | 100 100 79 96 Level 1 11 | . . 20 3 Level 2 . | . . . . Level 3 . | . . . . Level 4 . | . . . . Level 5 . | . . . . High Security . | . . . . Max Security . | . . . . Squads Dispatched 6 | . . 4 2 Investigation 2 | . . 2 . Extermination . | . . . . Reinforcement 4 | . . 2 2 Assault . | . . . . Garrison . | . . . . Intercept . | . . . . Construction Impeded . | . . . . Haulers Reinforced . | . . . . Stealth | -11 -10 -9 -9 --------- Run | Scr Mat Mat Sto Distress Signals 2 | . . 1 1 Communications Jammed . | . . . . Distress Signals . | . . . . Times Spotted 30 | . 2 17 11 Peak Tracking Total 11 | . 1 11 4 Tactical Retreats 2 | . . 2 . Traps | -11 -10 -9 -9 ------- Run | Scr Mat Mat Sto Traps Triggered 4 | . . 2 2 Indirectly . | . . . . Trap Hack Attempts . | . . . . Triggered . | . . . . Disarmed . | . . . . Reprogrammed . | . . . . Reused . | . . . . Traps Extracted . | . . . . Installed . | . . . . Triggered . | . . . . Machines | -11 -10 -9 -9 ---------- Run | Scr Mat Mat Sto Machines Disabled 4 | . . 2 2 Max in Single Turn 1 | . . 1 1 Machines Sabotaged . | . . . . Garrisons Compromised . | . . . . Overloaded Fab Kills . | . . . . Fab Network Shutdowns . | . . . . Hacking | -11 -10 -9 -9 --------- Run | Scr Mat Mat Sto Machines Accessed 8 | . 3 4 1 Terminals 7 | . 3 3 1 Fabricators . | . . . . Repair Stations . | . . . . Recycling Units 1 | . . 1 . Scanalyzers . | . . . . Garrison Access . | . . . . Total Hacks 18 | . 8 9 1 Successful 10 | . 3 6 1 Failed 8 | . 5 3 . Catastrophic 1 | . 1 . . Database Lockouts . | . . . . Manual 13 | . 7 6 . Terminals 17 | . 8 8 1 Fabricators . | . . . . Repair Stations . | . . . . Recycling Units 1 | . . 1 . Scanalyzers . | . . . . Garrison Access . | . . . . Terminal Hacks 4 | . . 3 1 Prototype ID Bank 1 | . . 1 . Open Door 1 | . . . 1 Locate Traps 1 | . . 1 . Patrol Status 1 | . . 1 . Fabricator Hacks . | . . . . Repair Station Hacks . | . . . . Recycling Unit Hacks 1 | . . 1 . Retrieve Components 1 | . . 1 . Scanalyzer . | . . . . Garrison Access Hacks . | . . . . Unauthorized Hacks 5 | . 3 2 . Terminals 5 | . 3 2 . Track 1 | . . 1 . Botnet 3 | . 2 1 . Operators 1 | . 1 . . Fabricators . | . . . . Repair Stations . | . . . . Recycling Units . | . . . . Scanalyzers . | . . . . Garrison Access . | . . . . Data Cores Recovered . | . . . . Used . | . . . . Hacking Detections 6 | . 3 3 . Full Trace Events 1 | . 1 . . Feedback Events . | . . . . Feedback Blocked . | . . . . Robot Schematics Acquired . | . . . . Robots Built . | . . . . Matter . | . . . . Time . | . . . . Total Robot Build Rating . | . . . . Part Schematics Acquired . | . . . . Parts Built . | . . . . Matter . | . . . . Time . | . . . . Total Part Build Rating . | . . . . Parts Repaired . | . . . . Time . | . . . . Parts Recycled . | . . . . Recycled Matter . | . . . . Retrieved Matter . | . . . . Retrieved Components 2 | . . 2 . Parts Scanalyzed . | . . . . Part Schematics Acquired . | . . . . Parts Damaged . | . . . . Bothacking | -11 -10 -9 -9 ------------ Run | Scr Mat Mat Sto Used RIF Installer . | . . . . Robots Hacked . | . . . . Non-combat . | . . . . Combat . | . . . . Robot Hacks Applied . | . . . . Relay Couplers Released . | . . . . Robots Rewired . | . . . . Allies Hacked . | . . . . Hacks Repelled . | . . . . Allies | -11 -10 -9 -9 -------- Run | Scr Mat Mat Sto Total Allies . | . . . . Largest Group . | . . . . Highest-Rated Group . | . . . . Highest-Rated Ally . | . . . . Total Orders . | . . . . Ally Attacks . | . . . . Total Damage . | . . . . Kills . | . . . . Allies Corrupted . | . . . . Allies Melted . | . . . . Intel | -11 -10 -9 -9 ------- Run | Scr Mat Mat Sto Robot Analysis Total . | . . . . Derelict Logs Recovered . | . . . . Drone Launches . | . . . . Drone Recoveries . | . . . . Exploration | -11 -10 -9 -9 ------------- Run | Scr Mat Mat Sto Turns Passed 1044 | 58 154 541 291 Spaces Moved 499 | 37 115 227 120 Core 4 | 4 . . . Treads 15 | . . 13 2 Legs 480 | 33 115 214 118 Wheels . | . . . . Hover . | . . . . Flight . | . . . . Fastest Speed 50 | 50 120 120 120 Average Speed 137 | 115 120 143 150 Slowest Speed 180 | 120 120 180 180 Overloaded Moves . | . . . . Propulsion Burnouts . | . . . . Robots Hopped . | . . . . Cave-ins Triggered . | . . . . Exploration Rate (%) 18 | 4 25 24 20 Regions Visited 3 Branch Regions 1 Pre-discovered Areas . | . . . . Known Exits Taken . | . . . . Unknown Exits Taken 3 | 1 1 1 . Scrap Searched . | . . . . Spaces Dug . | . . . . Terrain Destroyed 3 | . . 3 . Melee . | . . . . Projectile . | . . . . AOE 3 | . . 3 . Terrain Rammed . | . . . . Walls Destroyed . | . . . . Machines Disabled . | . . . . Actions | -11 -10 -9 -9 --------- Run | Scr Mat Mat Sto Total 744 | 49 121 392 182 Wait 142 | 3 . 117 22 Move 496 | 36 114 226 120 Hop . | . . . . Pick Up 9 | 4 1 3 1 Fast Attach 17 | 6 1 8 2 Attach 3 | . . 2 1 Detach 2 | . . 1 1 Swap 3 | . . 1 2 Drop 6 | . . 5 1 Fire 40 | . 5 17 18 Melee 26 | . . 12 14 Ram . | . . . . Kick . | . . . . Crush . | . . . . Escape Stasis . | . . . . Rewire . | . . . . Trap . | . . . . Miscellaneous . | . . . . Route ------- -11/Scrapyard -10/Materials -9/Materials -9/Storage History --------- Turn | Location | Event 10 | -11/Scrapyard | Discovered new exit (range 15) 59 | -11/Scrapyard | Entered Materials 138 | -10/Materials | Discovered new exit (range 3) 213 | -10/Materials | Entered another Materials area 213 | -9/Materials | Evolved 2 slots: Propulsion x1, Utility x1 319 | -9/Materials | Build established: Mutant 497 | -9/Materials | Discovered new exit (range 11) 535 | -9/Materials | Core integrity fell below 50% 579 | -9/Materials | Destroyed 7 combat bots 591 | -9/Materials | Lost 5 parts (1p2n2w) 754 | -9/Materials | Entered Storage 877 | -9/Storage | Build established: Scavenger-Mutant 1016 | -9/Storage | Core integrity fell below 20% 1045 | -9/Storage | Destroyed by G-34 Mercenary with Small Laser Last Messages --------------- 00962_ Y-45 Defender destroyed. 00963_ ALERT: Hostiles spotted, dispatching reinforcements to Terminal S010. 00968_ R-06 Scavenger collects Imp. Ion Engine. 00972_ R-06 Scavenger collects Hvy. Assault Rifle. 00976_ R-06 Scavenger collects Lgt. Treads. 00978_ Lgt. Treads destroyed. 00979_ Y-45 Defender destroyed. 00979_ R-06 Scavenger collects Lgt. Armor Plating. 00982_ R-06 Scavenger destroyed. 00986_ Acquired Com. Wheel. 00990_ Acquired Lgt. Treads. 00991_ Acquired 52 matter. 00995_ Hvy. Assault Rifle destroyed. 01014_ Destroyed Heat Sink. 01018_ Lgt. EM Pulse Cannon destroyed. 01023_ Y-45 Defender destroyed. 01028_ Imp. Ion Engine destroyed. 01036_ Destroyed Sml. Laser. 01039_ G-34 Mercenary destroyed. Map ----- +----------------------------------------------------+ | | | | | | | | | | | | | | | | | | | | | | | | | #############????????????????????????????????????? | | """ #????????????????????????????????????? | | """ "R" #????????????????????????????????????? | | """ " " #????????????????????????????????????? | | """!/% #????????????????????????????????????? | | =% #????????????????????????????????????? | | ######+###############???????????????????????????? | | # ^ #########???????????????????? | | # ## #???????????????????? | | # ## """ ##??????????????????? | | ######+########### ## """ #??????????????????? | | # ! #???????# ## """ #???????????????????? | | # """ #???????# ## #???????????????????? | | # """ #???##### ## @% #??#????????????????? | | # " " #??## # #####g####T#####????????????? | | # #??#T + !%!!% #????????????? | | # """ #??## ### [%=[= #????????????? | | # " " #??#! ## ! !* w #????????????? | | # " " #??#! !## !%[ ?????? | | # #??#! !## ############## ?????? | | ##########??#! !## #?????????????? ??????? | | ????????????###### #???????????????? ????????? | | ?????????????????# #??????????????????#????????? | | ?????????????????# #???????????????????????????? | | ?????????????????# #???????????????????????????? | | ?????????????????+ +???????????????????????????? | | ?????????????????# #???????????????????????????? | | ?????????????????# #???????????????????????????? | | ?????????????????# #???????????????????????????? | | ?????????????????# #???????????????????????????? | | ????????????????? ???????????????????????????? | | ????????????????? ???????????????????????????? | | ????????????????? ????????????????????????????? | | ?????????????????????????????????????????????????? | | ?????????????????????????????????????????????????? | | ?????????????????????????????????????????????????? | | ?????????????????????????????????????????????????? | | ?????????????????????????????????????????????????? | +----------------------------------------------------+ Best States ------------- Heat Dissipation 28 Energy Generation 14 Energy Capacity 265 Matter Stores 300 Matter Capacity 300 Sight Range 18 Terrain Scan Density 10 Evasion (%) 40 Recoil Reduction 1 Offensive Hacking 10 Item Schematics ----------------- None Robot Schematics ------------------ None Fabricated ------------ Nothing Alien Tech Used ----------------- None Achievements -------------- None Challenges ------------ None Game ------ Seed EtherialBoreDesublimator Manual? 0 Play Time 00:11:43 Cumulative 132.4 hours Start 2021.02.28 @ 00:01:27 End 2021.02.28 @ 00:10:39 Sessions 1 Manual Loads 0 Difficulty Rogue Special Mode None Game No. 235 Rogue 231 Adventurer 0 Explorer 4 Win Type - Total 0 Types 0/0/0/0/0/0/0/0/0 Lore% 63 Gallery% 73 Achievement% 49 Wizard Run 0 Options --------- ASCII 1 Keyboard 1 Movement Numpad Keybinds 0 Fullscreen 1 Font 18/X11Bold Map View 76x50 Tactical HUD 1 Map Filters NONE Filters NONE Steam 1 RUN: 60e4b3ea-ebf0-40ff-b96c-3bca7a679887